fUST/lending_fUST_20240811
["ID","MTS","AMOUNT","RATE_DAILY","PERIOD"]
[334639090,1723373441670,-424.0,0.00019186,2]
[334639091,1723373441679,-424.0,0.00019186,2]
[334639092,1723373441688,-424.0,0.00019186,2]
[334639093,1723373441697,-424.0,0.00019186,2]
[334639094,1723373441706,-424.0,0.00019186,2]
[334639095,1723373441715,-424.0,0.00019186,2]
[334639096,1723373441724,-424.0,0.00019186,2]
[334639097,1723373441734,-424.0,0.00019186,2]
[334639098,1723373441743,-424.0,0.00019186,2]
[334639099,1723373441752,-424.0,0.00019186,2]
[334639100,1723373441761,-424.0,0.00019186,2]
[334639101,1723373441770,-424.0,0.00019186,2]
[334639102,1723373441779,-424.0,0.00019186,2]
[334639103,1723373441788,-424.0,0.00019186,2]
[334639104,1723373441797,-424.0,0.00019186,2]
[334639105,1723373441806,-424.0,0.00019186,2]
[334639106,1723373441818,-424.0,0.00019186,2]
[334639107,1723373441827,-424.0,0.00019186,2]
[334639108,1723373441837,-424.0,0.00019186,2]
[334639109,1723373441846,-424.0,0.00019186,2]
[334639110,1723373441856,-424.0,0.00019186,2]
[334639111,1723373441866,-424.0,0.00019186,2]
[334639112,1723373441875,-424.0,0.00019186,2]
[334639113,1723373441883,-424.0,0.00019186,2]
[334639114,1723373441892,-225.0,0.00019186,2]
[334639115,1723373441903,-225.0,0.00019186,2]
[334639116,1723373441912,-225.0,0.00019186,2]
[334639117,1723373441921,-433.0,0.00019186,2]
[334639118,1723373441930,-433.0,0.00019186,2]
[334639119,1723373441941,-150.112233,0.000192,2]
[334639120,1723373441951,-809.10695268,0.00019256,2]
[334639121,1723373441960,-150.112233,0.000194,2]
[334639122,1723373441969,-150.112233,0.000194,2]
[334639123,1723373441979,-156.96173825,0.00019451,2]
[334639125,1723373441988,-196.63865106,0.00019451,2]
[334639127,1723373441997,-1500.0,0.00019451,2]
[334639128,1723373442006,-156.28091519,0.00019477,2]
[334639129,1723373442016,-154.76012181,0.00019477,2]
[334639131,1723373442026,-500.0,0.00019508,2]
[334639133,1723373442036,-154.77557542,0.00019547,2]
[334639135,1723373442045,-174.56235819,0.00019547,2]
[334639137,1723373442054,-2851.75877843,0.00019547,2]
[334639139,1723373442066,-150.112233,0.000197,2]
[334639140,1723373442075,-150.112233,0.000197,2]
[334639142,1723373442085,-587.0,0.00019779,2]
[334639144,1723373442094,-3220.61008223,0.000198,11]
[334639145,1723373442104,-30640.47786206,0.000198,2]
[334639146,1723373442322,-277.43269753,0.00018629,2]
[334639147,1723373442331,-728.15079492,0.00018786,2]
[334639148,1723373442341,-404.08727484,0.00018899,2]
[334639149,1723373442350,-2167.78348256,0.000198,2]
[334639150,1723373442362,-133286.60349339,0.000198,2]
[334639151,1723373442372,-150.112233,0.000199,2]
[334639152,1723373442382,-534.3800288,0.00019999,2]
[334639153,1723373442391,-494.6780177,0.00019999,2]
[334639154,1723373442400,-156.5036659,0.0002,2]
[334639155,1723373442410,-6081.05045101,0.0002,2]
[334639156,1723373442420,-1392.94350918,0.0002,2]
[334639157,1723373442429,-250.0,0.0002,2]
[334639158,1723373442438,-427.42147881,0.0002,2]
[334639159,1723373442447,-294.37791673,0.0002,2]
[334639160,1723373442456,-158.37000166,0.0002,2]
[334639161,1723373442465,-155.07911073,0.0002,2]
[334639162,1723373442476,-154.76012181,0.0002,2]
[334639163,1723373442485,-171.9478699,0.0002,2]
[334639164,1723373442495,-154.76012181,0.0002,2]
[334639165,1723373442504,-155.42019238,0.0002,2]
[334639166,1723373442514,-150.112233,0.000201,2]
[334639167,1723373442524,-150.112233,0.000201,4]
[334639168,1723373442533,-179.69485,0.00020163,2]
[334639169,1723373442543,-165.002825,0.00020163,2]
[334639170,1723373442552,-155.90530926,0.0002028,2]
[334639171,1723373442562,-414.28019691,0.0002028,2]
[334639172,1723373442573,-435.0,0.0002028,2]
[334639173,1723373442582,-154.76784823,0.0002028,2]
[334639174,1723373442591,-150.112233,0.000204,4]
[334639175,1723373442601,-500.0,0.00020483,2]
[334639176,1723373442610,-150.112233,0.000205,2]
[334639177,1723373442619,-150.0,0.00020504,2]
[334639178,1723373442629,-507.0,0.00020504,2]
[334639179,1723373442638,-1413.0,0.00020504,2]
[334639180,1723373442648,-212.26,0.00020504,2]
[334639181,1723373442657,-150.682,0.00020504,2]
[334639182,1723373442667,-150.781,0.00020504,2]
[334639183,1723373442676,-500.0,0.00020547,5]
[334639184,1723373442685,-500.0,0.00020547,5]
[334639185,1723373442695,-500.0,0.00020547,5]
[334639186,1723373442704,-500.0,0.00020547,5]
[334639187,1723373442714,-500.0,0.00020547,5]
[334639188,1723373442723,-500.0,0.00020547,5]
[334639189,1723373442732,-500.0,0.00020547,5]
[334639190,1723373442742,-500.0,0.00020547,5]
[334639191,1723373442751,-500.0,0.00020547,5]
[334639192,1723373442760,-500.0,0.00020547,5]
[334639193,1723373442770,-500.0,0.00020547,5]
[334639194,1723373442779,-500.0,0.00020547,5]
[334639195,1723373442789,-456.48,0.00020547,5]
[334639196,1723373442798,-254.44050928,0.000206,2]
[334639197,1723373442808,-150.112233,0.000206,4]
[334639198,1723373442818,-151.0,0.00020622,2]
[334639199,1723373442828,-179.69485,0.00020667,2]
[334639200,1723373442837,-810.44375008,0.00020688,2]
[334639201,1723373442848,-151.0,0.00020721,2]
[334639202,1723373442859,-185.187128,0.00020721,2]
[334639203,1723373442869,-185.187128,0.00020721,2]
[334639204,1723373442878,-175.444706,0.00020721,2]
[334639205,1723373442888,-175.444706,0.00020721,2]
[334639206,1723373442899,-151.0,0.00020721,2]
[334639207,1723373442908,-153.326434,0.00020721,2]
[334639208,1723373442917,-151.0,0.00020721,2]
[334639209,1723373442928,-25000.0,0.00020721,2]
[334639210,1723373442937,-336.48303043,0.00020721,2]
[334639211,1723373442947,-181.84460099,0.00020721,2]
[334639212,1723373442957,-504.4557744,0.00020821,3]
[334639213,1723373442967,-500.0,0.00020821,3]
[334639214,1723373442976,-500.0,0.00020821,3]
[334639215,1723373442985,-505.81764935,0.00020821,3]
[334639216,1723373442995,-500.0,0.00020821,3]
[334639217,1723373443005,-500.0,0.00020821,3]
[334639218,1723373443014,-500.88151954,0.00020821,3]
[334639219,1723373443024,-500.0,0.00020821,3]
[334639220,1723373443033,-500.0,0.00020821,3]
[334639221,1723373443042,-646.07888611,0.00020821,3]
[334639222,1723373443052,-500.0,0.00020821,3]
[334639223,1723373443061,-278.84094368,0.00020821,3]
[334639224,1723373443072,-500.0,0.00020821,3]
[334639225,1723373443082,-504.94205813,0.00020821,3]
[334639226,1723373443091,-1179.53,0.00020821,3]
[334639227,1723373443100,-500.0,0.00020821,3]
[334639228,1723373443110,-478.31533974,0.00020821,3]
[334639253,1723373447049,-3515.9295909,0.00018302,2]
[334639264,1723373581817,152.33,0.000232,31]
[334639265,1723373581875,152.33,0.000232,31]
[334639266,1723373581939,152.33,0.000232,31]
[334639267,1723373582050,152.33,0.000232,31]
[334639275,1723373863977,165.649199,0.00014247,2]
[334639277,1723374183160,152.42,0.000232,31]
[334639278,1723374183265,152.42,0.000232,31]
[334639279,1723374183312,152.42,0.000232,31]
[334639280,1723374183376,152.42,0.000232,31]
[334639281,1723374199996,40000.0,0.00027,120]
[334639282,1723374291287,2979.0,0.000171,7]
[334639285,1723374434114,-3904.78456064,0.00015744,2]
[334639286,1723374445095,-5746.25462043,0.00015744,2]
[334639287,1723374445118,-154.76012181,0.0001611,2]
[334639288,1723374445141,-300.0,0.00016158,2]
[334639289,1723374445163,-300.0,0.00016158,2]
[334639290,1723374445187,-163.155923,0.00016287,2]
[334639291,1723374445209,-720.175428,0.00016309,2]
[334639292,1723374445232,-223.32245684,0.00016347,2]
[334639293,1723374445256,-24900.0,0.00016436,2]
[334639294,1723374445279,-250.53341872,0.00016532,2]
[334639295,1723374445301,-5124.70720971,0.00016707,2]
[334639296,1723374445492,-5124.70720971,0.00016985,2]
[334639297,1723374445514,-5124.70720971,0.00016997,2]
[334639298,1723374445539,-163.155923,0.00017135,2]
[334639299,1723374445560,-879.84511431,0.00017403,2]
[334639300,1723374445582,-5124.70720971,0.00017408,2]
[334639301,1723374445604,-5124.70720971,0.00017594,2]
[334639302,1723374445626,-420.0,0.00017774,2]
[334639303,1723374445647,-5240.178669,0.00018,2]
[334639304,1723374445669,-5124.70720971,0.00018036,2]
[334639305,1723374445690,-5124.70720971,0.00018083,2]
[334639306,1723374445710,-404.08727484,0.00018402,2]
[334639307,1723374445735,-150.112233,0.000186,2]
[334639308,1723374445755,-5124.70720971,0.00018602,2]
[334639309,1723374445777,-500.0,0.00018624,2]
[334639310,1723374445799,-500.0,0.00018624,2]
[334639311,1723374445821,-500.0,0.00018624,2]
[334639312,1723374445847,-500.0,0.00018624,2]
[334639313,1723374445869,-500.0,0.00018624,2]
[334639314,1723374445891,-240.51786871,0.00018624,2]
[334639315,1723374445913,-66306.78910555,0.00018625,2]
[334639316,1723374468637,164.30583,0.00014247,2]
[334639317,1723374573175,-223.32245684,0.00017269,2]
[334639318,1723374573200,-3555.00757031,0.00017812,2]
[334639401,1723374640199,-290.92043058,0.00017269,2]
[334639402,1723374640210,-300.0,0.00017811,2]
[334639403,1723374640220,-21344.99242969,0.00017812,2]
[334639404,1723374640229,-183.457056,0.00018029,2]
[334639405,1723374640239,-183.457056,0.00018264,2]
[334639406,1723374640248,-404.08727484,0.00018302,2]
[334639407,1723374640257,-404.08727484,0.00018302,2]
[334639408,1723374640268,-183.457056,0.00018499,2]
[334639409,1723374640281,-183.457056,0.00018734,2]
[334639410,1723374640290,-2000.0,0.00018802,2]
[334639411,1723374640300,-150.112233,0.000189,2]
[334639412,1723374640311,-150.112233,0.000189,2]
[334639413,1723374640486,-396.280954,0.00018904,2]
[334639414,1723374640497,-154.76012181,0.0001891,2]
[334639415,1723374640507,-188.40491976,0.00018921,2]
[334639416,1723374640516,-183.457056,0.00018969,2]
[334639417,1723374640526,-35040.45161499,0.00018969,2]
[334639418,1723374640535,-522.80309354,0.00018989,2]
[334639419,1723374640547,-989.90003636,0.00018989,2]
[334639420,1723374640556,-250.0,0.00019041,2]
[334639421,1723374640566,-154.76012181,0.00019046,2]
[334639422,1723374640576,-154.76012181,0.00019046,2]
[334639423,1723374640586,-150.112233,0.000191,2]
[334639424,1723374640596,-9430.85260519,0.00019101,2]
[334639425,1723374640606,-301.25996446,0.00019102,2]
[334639426,1723374640616,-153.0,0.00019133,2]
[334639427,1723374640625,-153.0,0.00019133,2]
[334639428,1723374640635,-153.0,0.00019133,2]
[334639429,1723374640645,-153.0,0.00019133,2]
[334639430,1723374640656,-153.0,0.00019133,2]
[334639431,1723374640666,-153.0,0.00019133,2]
[334639432,1723374640676,-153.0,0.00019133,2]
[334639433,1723374640685,-153.0,0.00019133,2]
[334639434,1723374640695,-153.0,0.00019133,2]
[334639435,1723374640704,-153.0,0.00019133,2]
[334639436,1723374640714,-153.0,0.00019133,2]
[334639437,1723374640723,-153.0,0.00019133,2]
[334639438,1723374640734,-153.0,0.00019133,2]
[334639439,1723374640743,-153.0,0.00019133,2]
[334639440,1723374640752,-153.0,0.00019133,2]
[334639441,1723374640761,-153.0,0.00019133,2]
[334639442,1723374640771,-153.0,0.00019133,2]
[334639443,1723374640781,-153.0,0.00019133,2]
[334639444,1723374640791,-153.0,0.00019133,2]
[334639445,1723374640801,-153.0,0.00019133,2]
[334639446,1723374640810,-153.0,0.00019133,2]
[334639447,1723374640819,-153.0,0.00019133,2]
[334639448,1723374640828,-153.0,0.00019133,2]
[334639449,1723374640838,-153.0,0.00019133,2]
[334639450,1723374640847,-153.0,0.00019133,2]
[334639451,1723374640856,-153.0,0.00019133,2]
[334639452,1723374640866,-153.0,0.00019133,2]
[334639453,1723374640876,-153.0,0.00019133,2]
[334639454,1723374640886,-153.0,0.00019133,2]
[334639455,1723374640897,-153.0,0.00019133,2]
[334639456,1723374640907,-153.0,0.00019133,2]
[334639457,1723374640918,-153.0,0.00019133,2]
[334639458,1723374640928,-153.0,0.00019133,2]
[334639459,1723374640938,-153.0,0.00019133,2]
[334639460,1723374640947,-153.0,0.00019133,2]
[334639461,1723374640956,-153.0,0.00019133,2]
[334639462,1723374640965,-153.0,0.00019133,2]
[334639463,1723374640975,-153.0,0.00019133,2]
[334639464,1723374640985,-153.0,0.00019133,2]
[334639465,1723374640996,-153.0,0.00019133,2]
[334639466,1723374641005,-153.0,0.00019133,2]
[334639467,1723374641015,-153.0,0.00019133,2]
[334639468,1723374641025,-153.0,0.00019133,2]
[334639469,1723374641035,-153.0,0.00019133,2]
[334639470,1723374641044,-153.0,0.00019133,2]
[334639471,1723374641054,-153.0,0.00019133,2]
[334639472,1723374641064,-168.0,0.00019133,2]
[334639473,1723374641073,-168.0,0.00019133,2]
[334639474,1723374641082,-168.0,0.00019133,2]
[334639475,1723374641092,-168.0,0.00019133,2]
[334639476,1723374641101,-168.0,0.00019133,2]
[334639477,1723374641110,-153.0,0.00019133,2]
[334639478,1723374641119,-153.0,0.00019133,2]
[334639479,1723374641128,-153.0,0.00019133,2]
[334639480,1723374641138,-153.0,0.00019133,2]
[334639481,1723374641150,-153.0,0.00019133,2]
[334639482,1723374641159,-153.0,0.00019133,2]
[334639483,1723374641169,-153.0,0.00019133,2]
[334639484,1723374641178,-153.0,0.00019133,2]
[334639485,1723374641188,-153.0,0.00019133,2]
[334639486,1723374641198,-153.0,0.00019133,2]
[334639487,1723374641208,-153.0,0.00019133,2]
[334639488,1723374641218,-153.0,0.00019133,2]
[334639489,1723374641227,-153.0,0.00019133,2]
[334639490,1723374641236,-156.0,0.00019153,2]
[334639491,1723374641245,-156.0,0.00019153,2]
[334639492,1723374641254,-156.0,0.00019153,2]
[334639493,1723374641263,-156.0,0.00019153,2]
[334639494,1723374641280,-156.0,0.00019153,2]
[334639495,1723374641290,-432.0,0.00019153,2]
[334639496,1723374641300,-432.0,0.00019153,2]
[334639497,1723374641310,-432.0,0.00019153,2]
[334639498,1723374641319,-432.0,0.00019153,2]
[334639499,1723374641329,-432.0,0.00019153,2]
[334639500,1723374641338,-432.0,0.00019153,2]
[334639501,1723374641347,-432.0,0.00019153,2]
[334639502,1723374641359,-432.0,0.00019153,2]
[334639503,1723374641369,-432.0,0.00019153,2]
[334639504,1723374641378,-432.0,0.00019153,2]
[334639505,1723374641388,-432.0,0.00019153,2]
[334639506,1723374641398,-432.0,0.00019153,2]
[334639507,1723374641407,-432.0,0.00019153,2]
[334639508,1723374641417,-432.0,0.00019153,2]
[334639509,1723374641426,-432.0,0.00019153,2]
[334639510,1723374641436,-432.0,0.00019153,2]
[334639511,1723374641445,-432.0,0.00019153,2]
[334639512,1723374641454,-164.0,0.00019153,2]
[334639513,1723374641463,-164.0,0.00019153,2]
[334639514,1723374641473,-164.0,0.00019153,2]
[334639515,1723374641482,-164.0,0.00019153,2]
[334639516,1723374641491,-164.0,0.00019153,2]
[334639517,1723374641501,-164.0,0.00019153,2]
[334639518,1723374641510,-164.0,0.00019153,2]
[334639519,1723374641521,-164.0,0.00019153,2]
[334639520,1723374641530,-164.0,0.00019153,2]
[334639521,1723374641539,-164.0,0.00019153,2]
[334639522,1723374641559,-164.0,0.00019153,2]
[334639523,1723374641569,-164.0,0.00019153,2]
[334639524,1723374641578,-164.0,0.00019153,2]
[334639525,1723374641587,-164.0,0.00019153,2]
[334639526,1723374641596,-164.0,0.00019153,2]
[334639527,1723374641606,-164.0,0.00019153,2]
[334639528,1723374641615,-164.0,0.00019153,2]
[334639529,1723374641624,-164.0,0.00019153,2]
[334639530,1723374641634,-164.0,0.00019153,2]
[334639531,1723374641643,-432.0,0.00019153,2]
[334639532,1723374641654,-432.0,0.00019153,2]
[334639533,1723374641663,-432.0,0.00019153,2]
[334639534,1723374641673,-432.0,0.00019153,2]
[334639535,1723374641682,-432.0,0.00019153,2]
[334639536,1723374641692,-432.0,0.00019153,2]
[334639537,1723374641701,-432.0,0.00019153,2]
[334639538,1723374641711,-432.0,0.00019153,2]
[334639539,1723374641720,-432.0,0.00019153,2]
[334639540,1723374641729,-432.0,0.00019153,2]
[334639541,1723374641738,-432.0,0.00019153,2]
[334639542,1723374641747,-432.0,0.00019153,2]
[334639543,1723374641757,-432.0,0.00019153,2]
[334639544,1723374641766,-432.0,0.00019153,2]
[334639545,1723374641776,-432.0,0.00019153,2]
[334639546,1723374641785,-432.0,0.00019153,2]
[334639547,1723374641794,-432.0,0.00019153,2]
[334639548,1723374641805,-172.0,0.00019153,2]
[334639549,1723374641816,-172.0,0.00019153,2]
[334639550,1723374641827,-172.0,0.00019153,2]
[334639551,1723374641837,-172.0,0.00019153,2]
[334639552,1723374641847,-172.0,0.00019153,2]
[334639553,1723374641859,-172.0,0.00019153,2]
[334639554,1723374641869,-172.0,0.00019153,2]
[334639555,1723374641880,-172.0,0.00019153,2]
[334639556,1723374641891,-172.0,0.00019153,2]
[334639557,1723374641902,-172.0,0.00019153,2]
[334639558,1723374641912,-172.0,0.00019153,2]
[334639559,1723374641922,-172.0,0.00019153,2]
[334639560,1723374641933,-172.0,0.00019153,2]
[334639561,1723374641944,-172.0,0.00019153,2]
[334639562,1723374641955,-172.0,0.00019153,2]
[334639563,1723374641966,-172.0,0.00019153,2]
[334639564,1723374641975,-172.0,0.00019153,2]
[334639565,1723374641985,-172.0,0.00019153,2]
[334639566,1723374641995,-432.0,0.00019153,2]
[334639567,1723374642005,-432.0,0.00019153,2]
[334639568,1723374642016,-432.0,0.00019153,2]
[334639569,1723374642025,-432.0,0.00019153,2]
[334639570,1723374642035,-432.0,0.00019153,2]
[334639571,1723374642044,-432.0,0.00019153,2]
[334639572,1723374642053,-432.0,0.00019153,2]
[334639573,1723374642062,-432.0,0.00019153,2]
[334639574,1723374642073,-432.0,0.00019153,2]
[334639575,1723374642082,-432.0,0.00019153,2]
[334639576,1723374642091,-432.0,0.00019153,2]
[334639577,1723374642101,-432.0,0.00019153,2]
[334639578,1723374642111,-432.0,0.00019153,2]
[334639579,1723374642122,-432.0,0.00019153,2]
[334639580,1723374642134,-432.0,0.00019153,2]
[334639581,1723374642145,-432.0,0.00019153,2]
[334639582,1723374642155,-432.0,0.00019153,2]
[334639583,1723374642165,-179.0,0.00019153,2]
[334639584,1723374642174,-179.0,0.00019153,2]
[334639585,1723374642185,-179.0,0.00019153,2]
[334639586,1723374642195,-179.0,0.00019153,2]
[334639587,1723374642206,-179.0,0.00019153,2]
[334639588,1723374642217,-179.0,0.00019153,2]
[334639589,1723374642227,-179.0,0.00019153,2]
[334639590,1723374642238,-179.0,0.00019153,2]
[334639591,1723374642247,-179.0,0.00019153,2]
[334639592,1723374642258,-179.0,0.00019153,2]
[334639593,1723374642270,-179.0,0.00019153,2]
[334639594,1723374642280,-179.0,0.00019153,2]
[334639595,1723374642289,-179.0,0.00019153,2]
[334639596,1723374642299,-179.0,0.00019153,2]
[334639597,1723374642308,-179.0,0.00019153,2]
[334639598,1723374642317,-179.0,0.00019153,2]
[334639599,1723374642326,-432.0,0.00019153,2]
[334639600,1723374642335,-432.0,0.00019153,2]
[334639601,1723374642346,-432.0,0.00019153,2]
[334639602,1723374642360,-432.0,0.00019153,2]
[334639603,1723374642369,-432.0,0.00019153,2]
[334639604,1723374642379,-432.0,0.00019153,2]
[334639605,1723374642388,-432.0,0.00019153,2]
[334639607,1723374642399,-432.0,0.00019153,2]
[334639609,1723374642412,-432.0,0.00019153,2]
[334639610,1723374642421,-432.0,0.00019153,2]
[334639611,1723374642431,-432.0,0.00019153,2]
[334639612,1723374642440,-432.0,0.00019153,2]
[334639613,1723374642449,-432.0,0.00019153,2]
[334639614,1723374642459,-432.0,0.00019153,2]
[334639615,1723374642468,-432.0,0.00019153,2]
[334639616,1723374642478,-432.0,0.00019153,2]
[334639617,1723374642487,-432.0,0.00019153,2]
[334639619,1723374642496,-42377.77535747,0.00019167,2]
[334639620,1723374642507,-277.43269753,0.00019177,2]
[334639621,1723374642516,-2851.75877843,0.00019177,2]
[334639622,1723374642525,-168.678157,0.00019178,2]
[334639623,1723374642535,-150.112233,0.000192,2]
[334639624,1723374642544,-962.38282029,0.00019256,2]
[334639625,1723374642553,-150.112233,0.000193,2]
[334639626,1723374642563,-150.112233,0.000194,2]
[334639627,1723374642572,-2164.45800918,0.00019451,2]
[334639628,1723374642582,-2164.45800918,0.00019451,2]
[334639630,1723374642592,-232.94323783,0.00019451,2]
[334639632,1723374642601,-181.84460099,0.00019451,2]
[334639633,1723374642610,-155.37836526,0.00019451,2]
[334639634,1723374642620,-1500.0,0.00019451,2]
[334639636,1723374642630,-809.10695268,0.00019451,2]
[334639639,1723374642640,-500.0,0.00019476,2]
[334639641,1723374642650,-500.0,0.00019476,2]
[334639643,1723374642659,-418.3625081,0.00019476,2]
[334639645,1723374642668,-500.0,0.00019476,2]
[334639647,1723374642677,-932.99527997,0.00019477,2]
[334639648,1723374642687,-163.09265262,0.00019477,2]
[334639649,1723374642696,-1364.59246336,0.00019477,2]
[334639650,1723374642706,-154.76012181,0.00019477,2]
[334639651,1723374642715,-2000.0,0.000195,5]
[334639652,1723374642724,-500.0,0.00019508,2]
[334639653,1723374642734,-500.0,0.00019508,2]
[334639654,1723374642743,-154.77557542,0.00019547,2]
[334639656,1723374642752,-414.28019691,0.00019547,2]
[334639658,1723374642761,-180.63105164,0.00019547,2]
[334639659,1723374642771,-5124.70720971,0.00019561,2]
[334639660,1723374642780,-420.0,0.00019592,2]
[334639661,1723374642789,-150.112233,0.000196,2]
[334639662,1723374642798,-150.112233,0.000196,2]
[334639663,1723374642807,-5124.70720971,0.00019769,2]
[334639664,1723374642817,-150.112233,0.000198,2]
[334639665,1723374642827,-150.112233,0.000199,2]
[334639666,1723374642836,-151.0,0.00019999,2]
[334639667,1723374642845,-157.95166393,0.00019999,2]
[334639668,1723374642855,-287.82937614,0.00019999,2]
[334639669,1723374642865,-156.28091519,0.00019999,2]
[334639670,1723374642874,-154.76784823,0.00019999,2]
[334639671,1723374642883,-196.63865106,0.00019999,2]
[334639672,1723374642893,-174.56235819,0.00019999,2]
[334639673,1723374642904,-816.94684465,0.00019999,4]
[334639674,1723374642913,-601.3570708,0.00019999,2]
[334639675,1723374642922,-222.78569548,0.0002,2]
[334639676,1723374642931,-2000.0,0.0002,7]
[334639677,1723374642940,-156.5036659,0.0002,2]
[334639678,1723374642949,-150.112233,0.0002,5]
[334639679,1723374642958,-1392.94350918,0.0002,2]
[334639680,1723374642968,-154.76012181,0.0002,2]
[334639681,1723374642978,-250.0,0.0002,2]
[334639683,1723374642989,-154.76012181,0.0002,2]
[334639685,1723374642998,-336.48303043,0.0002,2]
[334639687,1723374643009,-427.42147881,0.0002,2]
[334639688,1723374643019,-294.37791673,0.0002,2]
[334639689,1723374643028,-5124.70720971,0.00020088,2]
[334639690,1723374643037,-150.112233,0.000201,4]
[334639691,1723374643046,-179.69485,0.00020163,2]
[334639692,1723374643055,-165.002825,0.00020163,2]
[334639693,1723374643064,-23577.53124493,0.000202,3]
[334639694,1723374643074,-150.0,0.00020258,2]
[334639695,1723374643083,-155.90530926,0.0002028,2]
[334639696,1723374643092,-156.96173825,0.0002028,2]
[334639697,1723374643102,-435.0,0.0002028,2]
[334639698,1723374643111,-810.44375008,0.0002028,2]
[334639699,1723374643120,-5124.70720971,0.00020281,2]
[334639700,1723374643129,-150.112233,0.000203,4]
[334639701,1723374643138,-151.0,0.00020309,2]
[334639703,1723374643150,-1413.0,0.00020394,2]
[334639704,1723374643159,-150.112233,0.000204,4]
[334639706,1723374643168,-150.112233,0.000205,2]
[334639707,1723374643177,-150.0,0.00020501,2]
[334639708,1723374643186,-500.0,0.00020547,7]
[334639709,1723374643196,-500.0,0.00020547,7]
[334639710,1723374643205,-516.97099816,0.00020547,7]
[334639711,1723374643215,-500.0,0.00020547,5]
[334639713,1723374643225,-500.0,0.00020547,5]
[334639714,1723374643234,-500.0,0.00020547,5]
[334639715,1723374643243,-500.0,0.00020547,5]
[334639716,1723374643252,-500.0,0.00020547,5]
[334639717,1723374643262,-500.0,0.00020547,5]
[334639718,1723374643272,-500.0,0.00020547,5]
[334639719,1723374643285,-500.0,0.00020547,5]
[334639720,1723374643294,-500.0,0.00020547,5]
[334639721,1723374643303,-500.0,0.00020547,5]
[334639722,1723374643312,-153.0,0.00020548,2]
[334639723,1723374643323,-294.6834504,0.00020548,2]
[334639724,1723374643334,-294.6834504,0.00020548,2]
[334639725,1723374643345,-294.6834504,0.00020548,2]
[334639726,1723374643357,-294.6834504,0.00020548,2]
[334639727,1723374643367,-294.6834504,0.00020548,2]
[334639728,1723374643378,-150.112233,0.000206,4]
[334639729,1723374643387,-151.0,0.0002062,2]
[334639730,1723374643396,-151.0,0.0002062,2]
[334639731,1723374643407,-150.0,0.00020668,2]
[334639732,1723374643417,-507.0,0.00020668,2]
[334639733,1723374643427,-2185.2605368,0.0002072,2]
[334639734,1723374643438,-25000.0,0.00020721,2]
[334639735,1723374643448,-154.76012181,0.00020721,2]
[334639736,1723374643457,-154.76012181,0.00020721,2]
[334639737,1723374643467,-153.0,0.00020767,2]
[334639738,1723374643479,-431.130005,0.0002078,2]
[334639739,1723374643490,-150.112233,0.000208,3]
[334639740,1723374643500,-500.0,0.00020801,5]
[334639741,1723374643508,-500.0,0.00020801,5]
[334639742,1723374643517,-456.48,0.0002081,5]
[334639743,1723374643526,-1031.48917452,0.00020811,2]
[334639744,1723374643535,-7940.89939699,0.00020821,2]